bitfinex/quotes_ETHUSD_20260106
["timestamp","ask_amount","ask_price","bid_price","bid_amount"]
[1767710420293,0.82687304,3300.5,3298.1,0.93687851]
[1767710420601,9.08815509,3301.0,3298.6,0.0212711]
[1767710420757,0.789,3300.4,3298.7,0.01511335]
[1767710420960,0.789,3300.4,3299.0,0.0212711]
[1767710421193,0.002,3301.1,3299.2,0.943028]
[1767710421487,0.791,3301.1,3299.6,0.0212711]
[1767710421667,0.002,3301.1,3299.7,0.01509866]
[1767710421867,0.791,3301.1,3299.7,0.01509866]
[1767710422092,0.791,3301.1,3299.1,12.8955188]
[1767710422093,6.09663737,3301.0,3299.3,0.0212711]
[1767710422288,0.82686846,3300.9,3299.5,0.0212711]
[1767710422587,0.82686846,3300.9,3298.7,0.0212711]
[1767710422796,0.99942436,3300.8,3299.4,0.0212711]
[1767710422997,0.03787075,3300.7,3299.4,0.0212711]
[1767710423192,6.05950432,3300.6,3299.4,0.0212711]
[1767710423372,0.03787304,3300.5,3299.4,0.0212711]
[1767710423686,6.05950432,3300.6,3299.1,0.0212711]
[1767710423889,3.02938503,3301.0,3299.8,0.0212711]
[1767710424092,0.789,3300.9,3300.0,0.0212711]
[1767710424889,0.002,3301.1,3300.2,0.0212711]
[1767710425097,0.789,3301.0,3300.2,0.0212711]
[1767710425460,3.03129566,3301.1,3300.2,0.0212711]
[1767710425660,3.03129566,3301.1,3300.1,0.0212711]
[1767710426092,3.03129566,3301.1,3299.9,3.05163704]
[1767710426093,0.789,3301.0,3299.9,0.0212711]
[1767710426292,0.82686731,3301.0,3299.8,0.0212711]
[1767710426660,3.82029566,3301.1,3300.2,0.0212711]
[1767710426902,0.002,3300.7,3300.3,0.0212711]
[1767710427392,0.002,3300.7,3300.4,0.0212711]
[1767710427579,0.002,3300.7,3300.0,0.0212711]
[1767710427786,0.002,3300.7,3300.2,0.0212711]
[1767710427976,0.788,3300.6,3300.2,0.0212711]
[1767710428374,0.788,3300.6,3299.8,0.0212711]
[1767710428579,0.788,3300.6,3299.7,0.0212711]
[1767710428776,0.788,3300.6,3299.9,0.0212711]
[1767710429175,0.788,3300.5,3299.7,0.0212711]
[1767710429382,0.788,3300.4,3299.4,0.0212711]
[1767710429595,0.788,3300.4,3299.2,0.0212711]
[1767710429774,0.788,3300.4,3299.4,0.0212711]
[1767710429971,0.788,3300.4,3299.2,0.0212711]
[1767710430176,0.03787534,3300.3,3298.8,0.0212711]
[1767710430505,0.03787534,3300.3,3298.7,3.95416677]
[1767710430506,0.03787534,3300.3,3298.7,0.001]
[1767710430720,0.03787534,3300.3,3298.0,0.001]
[1767710430721,6.0920602,3300.0,3298.0,0.001]
[1767710430871,6.0920602,3299.4,3298.0,0.001]
[1767710431070,0.788,3299.3,3297.5,3.05386629]
[1767710431307,4.37569546,3300.6,3297.5,3.05386629]
[1767710431308,0.788,3299.2,3298.1,0.0212711]
[1767710431597,0.788,3299.2,3297.7,0.0212711]
[1767710432169,0.788,3299.2,3297.5,0.0212711]
[1767710432702,0.19872991,3299.8,3297.7,0.0212711]
[1767710433005,1.06925788,3299.7,3297.7,0.0212711]
[1767710433309,1.06925788,3299.7,3297.5,0.32879337]
[1767710433310,12.12304892,3299.5,3297.5,0.32879337]
[1767710433507,12.12304892,3299.5,3296.9,3.05440979]
[1767710433508,0.28125788,3299.4,3296.9,3.05440979]
[1767710433691,0.28125788,3299.4,3296.9,0.0212711]
[1767710433878,0.28125788,3299.4,3297.3,0.0212711]
[1767710434280,0.28125788,3299.4,3296.9,0.0212711]
[1767710434482,0.95752709,3299.3,3296.9,0.0212711]
[1767710434689,0.95752709,3299.1,3296.9,0.0212711]
[1767710434889,0.95752709,3298.9,3296.9,0.0212711]
[1767710435079,1.16030559,3298.8,3296.9,0.0212711]
[1767710435383,0.95752709,3298.4,3296.6,0.0212711]
[1767710436303,0.95752709,3298.4,3295.7,3.05548713]
[1767710436304,5.29124234,3298.1,3295.7,0.0212711]
[1767710436517,0.95752709,3298.4,3295.7,0.0212711]
[1767710436518,1.07032699,3298.0,3295.7,0.0212711]
[1767710436684,1.07032699,3298.0,3295.4,0.001]
[1767710436685,0.28132699,3297.9,3295.5,0.0212711]
[1767710437060,1.23885408,3297.9,3295.5,0.32907751]
[1767710437206,0.28132699,3297.8,3295.5,0.0212711]
[1767710437505,0.28094582,3297.7,3295.5,3.03443683]
[1767710437808,0.28094582,3297.6,3295.7,0.0212711]
[1767710437993,0.789,3297.5,3295.7,0.0212711]
[1767710438316,0.789,3297.5,3295.7,0.63241309]
[1767710438477,0.789,3297.5,3295.4,0.001]
[1767710438669,6.35645679,3297.6,3295.4,0.001]
[1767710438670,1.06961054,3297.4,3295.4,0.001]
[1767710438870,0.28063622,3297.3,3295.4,0.001]
[1767710439070,0.789,3297.4,3295.4,0.001]
[1767710439274,0.95752709,3297.1,3295.4,0.001]
[1767710439493,0.95752709,3297.1,3295.0,0.0212711]
[1767710439695,0.95752709,3297.1,3295.2,0.0212711]
[1767710440508,0.95752709,3297.1,3294.7,3.03512923]
[1767710440710,0.95752709,3297.1,3295.3,0.0212711]
[1767710440917,0.789,3297.0,3295.3,0.0212711]
[1767710441125,0.789,3297.0,3295.1,0.0212711]
[1767710441327,12.1326094,3296.9,3295.1,0.0212711]
[1767710441482,15.16576175,3296.9,3294.4,0.0212711]
[1767710441687,15.16576175,3296.9,3294.4,3.05663906]
[1767710441919,15.16576175,3296.9,3294.6,0.0212711]
[1767710442319,15.16576175,3296.9,3294.4,0.0212711]
[1767710442615,16.12328884,3296.9,3294.5,0.0212711]
[1767710442829,1.11752709,3296.7,3294.0,0.0212711]
[1767710443120,0.16,3296.6,3294.2,0.0212711]
[1767710443423,0.16,3296.4,3293.5,0.95077277]
[1767710443586,0.16,3296.2,3293.7,0.0212711]
[1767710443790,0.16,3296.2,3293.7,3.05735918]
[1767710443983,6.35645679,3295.9,3293.4,3.03630878]
[1767710444195,6.35645679,3295.9,3293.3,0.0212711]
[1767710444399,6.35645679,3295.9,3293.3,3.05772559]
[1767710444694,0.16,3295.7,3293.1,0.0212711]
[1767710444889,0.16,3295.7,3292.9,0.95077277]
[1767710444890,0.95752709,3295.5,3293.2,0.30579576]
[1767710445105,0.16,3295.7,3293.6,3.0361897]
[1767710445303,0.789,3295.6,3293.4,0.95077277]
[1767710445505,9.1033227,3295.5,3293.6,0.0212711]
[1767710446293,10.06084979,3295.5,3293.4,3.05761925]
[1767710446817,10.06084979,3295.5,3293.1,0.0212711]
[1767710446818,16.12973159,3295.5,3293.1,0.0212711]
[1767710447222,0.95752709,3295.4,3293.1,0.0212711]
[1767710447406,12.13850028,3295.3,3293.3,0.0212711]
[1767710447590,12.13850028,3295.3,3293.2,3.03654716]
[1767710447793,12.13850028,3295.3,3292.9,0.95077277]
[1767710447994,12.13850028,3295.3,3293.1,3.03664432]
[1767710448193,12.13850028,3295.3,3293.1,0.70242305]
[1767710448416,15.17312535,3295.3,3292.9,0.92950167]
[1767710448616,0.16,3295.2,3292.9,0.92950167]
[1767710448821,1.11752709,3295.2,3292.7,0.0212711]
[1767710449002,1.11752709,3295.2,3292.7,3.05821071]
[1767710449208,1.11752709,3295.2,3292.7,0.0212711]
[1767710449427,12.13923704,3295.1,3292.9,3.03677158]
[1767710449726,0.789,3295.0,3292.9,3.05804268]
[1767710449915,6.06961852,3295.1,3293.3,0.0212711]
[1767710450106,0.789,3295.0,3293.1,0.92950167]
[1767710450603,0.789,3295.0,3292.8,0.30583087]
[1767710450604,0.82693626,3295.0,3292.8,0.30583087]
[1767710450808,0.95752709,3294.8,3292.2,3.03747284]
[1767710451125,0.99546565,3294.8,3292.1,0.0212711]
[1767710451422,13.09823789,3294.7,3292.1,0.0212711]
[1767710451800,0.95752709,3294.6,3292.2,6.07496506]
[1767710452073,0.95752709,3294.6,3292.3,0.60962362]
[1767710452074,0.97879819,3294.6,3292.3,0.60962362]
[1767710452228,0.95752709,3294.3,3291.6,0.92950167]
[1767710452401,0.79,3294.2,3291.9,0.92950167]
[1767710452917,0.79,3294.2,3292.1,3.03756337]
[1767710453243,0.17475271,3294.1,3292.3,0.92950167]
[1767710453528,0.17475271,3294.1,3292.2,0.32502744]
[1767710453529,0.79,3294.2,3292.8,7.00335977]
[1767710453729,3.82563862,3294.2,3292.9,0.92950167]
[1767710453944,0.79,3294.2,3292.9,0.95077277]
[1767710454226,3.03475462,3295.2,3292.9,0.95077277]
[1767710454227,6.06961852,3295.1,3293.1,0.95077277]
[1767710454435,0.82793626,3295.0,3293.1,0.95077277]
[1767710454737,0.79,3295.0,3293.5,0.95077277]
[1767710455098,0.03793741,3294.9,3292.8,0.92950167]
[1767710455535,6.39910707,3294.6,3292.2,3.03748043]
[1767710455877,12.1418164,3294.4,3292.3,0.39669821]
[1767710456019,0.82794432,3294.3,3292.3,0.39669821]
[1767710456225,0.82794432,3294.3,3292.1,0.92950167]
[1767710456424,0.84921542,3294.3,3291.4,0.95077277]
[1767710456755,0.84921542,3294.3,3291.6,3.03801937]
[1767710456942,6.39910707,3293.9,3291.4,0.92950167]
[1767710457143,0.03795008,3293.8,3291.4,0.92950167]
[1767710457344,0.79,3293.7,3291.4,0.92950167]
[1767710457527,0.03795239,3293.6,3291.4,0.92950167]
[1767710457721,12.14513432,3293.5,3291.4,3.03821597]
[1767710458022,0.79,3293.4,3291.6,0.0212711]
[1767710458428,0.79,3293.4,3291.9,0.99510262]
[1767710458737,0.79,3293.4,3292.1,0.99510262]
[1767710459327,0.79,3294.0,3292.5,0.99510262]
[1767710459635,0.03794893,3293.9,3292.5,0.99510262]
[1767710459839,3.07394143,3293.9,3292.6,4.03221614]
[1767710460146,9.14592643,3293.9,3292.0,3.05886889]
[1767710460348,9.14592643,3293.9,3291.3,3.03829721]
[1767710460349,15.1799625,3293.9,3291.3,3.03829721]
[1767710460544,6.39910707,3293.5,3291.3,0.40556709]
[1767710460745,3.195,3293.3,3291.1,0.001]
[1767710460935,6.39910707,3292.8,3290.5,0.99510262]
[1767710461151,0.16,3293.1,3290.5,0.99510262]
[1767710461459,0.27952238,3293.0,3290.6,3.03888436]
[1767710461630,0.27952238,3292.9,3290.5,4.03413152]
[1767710461829,12.42723499,3292.8,3290.5,0.99510262]
[1767710462037,6.0738581,3292.8,3290.6,1.14625728]
[1767710462244,0.79,3292.7,3290.9,1.14625728]
[1767710462456,1.39738581,3292.7,3290.9,1.14625728]
[1767710463066,1.39738581,3292.7,3290.5,3.03905181]
[1767710463359,1.39738581,3292.7,3289.5,1.14625728]
[1767710463360,6.37376616,3292.3,3289.5,1.14625728]
[1767710463567,6.37376616,3292.3,3289.7,3.03976534]
[1767710463568,0.27994066,3292.2,3289.7,3.03976534]
[1767710463874,12.15066828,3292.0,3289.6,3.03988326]
[1767710464033,1.39738581,3291.9,3289.7,0.72261119]
[1767710464461,0.60738581,3291.9,3289.7,1.86886847]
[1767710464649,0.79,3291.8,3289.8,1.14625728]
[1767710464849,0.60738581,3291.9,3289.8,1.14625728]
[1767710465052,0.60738581,3291.9,3289.7,0.74388229]
[1767710465053,0.0212711,3294.0,3290.8,1.14625728]
[1767710465253,0.0212711,3292.7,3291.0,1.14625728]
[1767710465558,0.0212711,3292.5,3291.0,1.14625728]
[1767710465866,0.03796622,3292.4,3291.0,4.18484014]
[1767710466084,3.03723288,3292.5,3291.1,0.41848401]
[1767710466295,0.0212711,3292.4,3291.1,0.41848401]
[1767710466560,0.0212711,3292.2,3291.1,0.41848401]
[1767710467116,0.79,3292.8,3291.1,1.56474129]
[1767710467373,0.0212711,3292.7,3291.1,1.56474129]
[1767710467678,0.0212711,3292.7,3291.2,0.76418848]
[1767710467833,0.82796161,3292.8,3291.3,6.07662624]
[1767710468038,3.03639777,3293.4,3291.4,1.14625728]
[1767710468255,3.03639777,3293.4,3291.5,1.14625728]
[1767710468467,0.0212711,3293.2,3291.7,1.14625728]
[1767710469555,0.0212711,3293.2,3291.3,6.07662624]
[1767710469556,0.0212711,3292.7,3291.3,3.03831312]
[1767710469875,0.0212711,3292.7,3291.2,0.76418848]
[1767710469876,3.03729801,3292.4,3291.2,0.76418848]
[1767710470085,3.05851112,3292.5,3291.2,3.03840449]
[1767710470086,3.05850236,3292.5,3291.2,3.03840449]
[1767710470581,3.03679779,3293.0,3291.2,3.03840449]
[1767710470582,0.162,3294.2,3292.1,0.0212711]
[1767710470741,0.002,3294.5,3293.2,0.64631141]
[1767710470952,0.002,3294.5,3292.6,0.82760058]
[1767710471148,0.0212711,3295.4,3292.7,1.03252256]
[1767710471351,0.0212711,3295.4,3292.8,0.25064345]
[1767710471352,0.0212711,3295.2,3292.8,0.25064345]
[1767710471551,0.0212711,3295.2,3292.9,0.64631141]
[1767710471770,0.0212711,3295.2,3293.0,9.1102338]
[1767710471967,0.0212711,3295.0,3293.0,9.1102338]
[1767710472568,0.0212711,3294.8,3293.0,6.0734892]
[1767710472780,0.0212711,3294.6,3293.0,6.70590247]
[1767710473147,0.0212711,3294.6,3293.0,9.74264707]
[1767710473353,0.79,3294.7,3293.0,9.74264707]
[1767710473753,0.79,3294.7,3293.0,12.77939167]
[1767710473962,0.0212711,3295.4,3293.1,1.92425058]
[1767710474150,4.120201,3295.5,3293.1,1.92425058]
[1767710474350,0.79,3295.6,3293.1,1.92425058]
[1767710474610,0.0212711,3296.0,3293.4,0.41952256]
[1767710474771,0.0212711,3295.6,3293.3,0.92032507]
[1767710474982,0.03793051,3295.5,3293.5,0.773]
[1767710475154,0.05920046,3295.6,3293.4,0.16]
[1767710475485,0.05920046,3295.6,3293.3,0.92032507]
[1767710475486,0.79,3295.7,3293.6,0.773]
[1767710475902,1.17473505,3295.7,3293.7,12.14439684]
[1767710476065,0.002,3295.9,3293.8,0.41952256]
[1767710476263,0.002,3295.9,3293.8,1.06583397]
[1767710476666,0.002,3295.9,3294.0,0.16]
[1767710476864,0.002,3295.6,3294.0,0.16]
[1767710477969,0.002,3295.6,3294.3,12.14218496]
[1767710478174,0.002,3295.6,3294.4,1.24017075]
[1767710478491,0.002,3295.9,3294.4,1.24017075]
[1767710478669,3.03289895,3297.2,3294.5,0.80631141]
[1767710478869,0.0212711,3296.9,3294.6,0.25952256]
[1767710479067,0.0212711,3296.9,3294.4,1.24017075]
[1767710479068,1.14493707,3296.8,3294.7,0.933]
[1767710479280,0.0212711,3296.6,3294.7,0.933]
[1767710479478,1.14493707,3296.8,3294.4,1.24017075]
[1767710479678,1.08575042,3296.8,3294.5,1.19252256]
[1767710479885,0.18757504,3296.7,3294.7,12.1407108]
[1767710480390,0.0212711,3296.9,3294.7,12.1407108]
[1767710480592,0.0212711,3296.6,3294.7,9.1055331]
[1767710480794,0.0212711,3296.6,3294.7,6.0703554]
[1767710481290,0.0212711,3296.6,3294.7,9.1055331]
[1767710481491,1.10702152,3296.6,3294.7,9.1055331]
[1767710481791,1.08575042,3296.6,3294.8,1.01218024]
[1767710482001,3.0335204,3296.5,3294.9,6.06998694]
[1767710482877,3.0547915,3296.5,3294.9,6.06998694]
[1767710483398,0.30348989,3297.1,3295.0,0.56512766]
[1767710483567,3.03297764,3297.1,3295.0,0.16]
[1767710483768,3.82290321,3297.2,3295.0,0.16]
[1767710484097,6.85580642,3297.2,3295.2,0.16]
[1767710484297,0.81562678,3297.1,3295.3,1.69944278]
[1767710484515,3.05386068,3297.6,3295.3,1.69944278]
[1767710484516,0.19872991,3299.8,3296.1,1.11192297]
[1767710484800,0.19872991,3299.8,3295.6,0.0212711]
[1767710484801,0.19872991,3299.8,3296.8,0.41952256]
[1767710484802,0.0212711,3299.4,3296.8,0.41952256]
[1767710484981,0.0212711,3299.0,3296.8,0.16]
[1767710485182,0.0212711,3299.0,3296.9,0.772]
[1767710485494,0.0212711,3298.6,3296.5,0.16]
[1767710485698,0.05910576,3298.6,3296.2,0.16]
[1767710485898,0.05910576,3298.6,3296.3,1.03152256]
[1767710485899,0.0212711,3298.4,3296.3,1.03152256]
[1767710486105,3.05308566,3298.4,3296.5,0.25952256]
[1767710486393,3.05308566,3298.4,3296.4,6.06722484]
[1767710486394,0.0212711,3298.1,3296.4,6.06722484]
[1767710486606,0.0212711,3298.2,3296.4,9.10083726]
[1767710487070,0.05910576,3298.2,3296.4,6.06722484]
[1767710487405,0.0212711,3298.0,3296.4,6.06722484]
[1767710487787,1.08575042,3298.2,3296.4,9.71198218]
[1767710487997,0.789,3298.1,3296.4,9.71198218]
[1767710488361,3.842345,3298.1,3296.4,6.67836976]
[1767710488597,0.05910576,3298.0,3296.4,6.67836976]
[1767710489001,0.0212711,3298.0,3296.4,6.06722484]
[1767710489629,4.90882458,3298.1,3296.4,6.06722484]
[1767710489803,1.87675042,3298.1,3296.4,6.09756096]
[1767710489968,1.87675042,3298.1,3296.4,9.13117338]
[1767710490171,4.93007679,3298.1,3296.5,0.43976929]
[1767710490371,7.96213206,3298.1,3296.5,0.43976929]
[1767710490696,0.03783466,3298.0,3296.4,6.06722484]
[1767710491001,0.03783466,3298.0,3296.3,3.03368616]
[1767710491002,0.0212711,3297.6,3296.3,3.03368616]
[1767710491203,0.03783466,3297.5,3295.9,3.03399339]
[1767710491364,0.0212711,3297.2,3295.3,0.92644278]
[1767710491564,0.05910576,3297.2,3295.8,3.03410382]
[1767710491810,0.05910576,3297.2,3295.7,3.03417485]
[1767710491811,0.0212711,3297.0,3295.7,3.03417485]
[1767710491968,0.05910576,3297.2,3295.6,3.03434384]
[1767710491969,0.03783466,3296.9,3295.6,3.03434384]
[1767710492167,6.06593672,3297.1,3295.7,0.03034256]
[1767710492368,0.05910576,3297.0,3295.6,3.03434384]
[1767710492803,0.789,3296.9,3295.6,3.03434384]
[1767710493095,0.03783466,3297.1,3295.6,6.06869266]
[1767710493299,0.789,3297.0,3295.6,6.06869266]
[1767710494001,0.789,3297.0,3295.6,6.09903614]
[1767710494206,0.789,3296.9,3295.6,6.09903614]
[1767710494617,0.789,3296.9,3295.6,0.03034348]
[1767710494916,1.47905916,3296.8,3295.7,0.03034256]
[1767710495520,1.45778806,3296.8,3295.7,0.03034256]
[1767710495721,0.789,3296.7,3295.7,0.03034256]
[1767710496023,0.789,3296.7,3295.8,0.60990401]
[1767710496185,0.789,3296.7,3295.6,6.06869756]
[1767710496605,0.789,3296.7,3295.6,6.09904104]
[1767710497304,0.789,3296.7,3295.6,3.03434874]
[1767710497500,3.82234548,3296.7,3295.6,3.03434874]
[1767710497815,0.789,3296.7,3295.6,6.06869756]
[1767710498112,0.789,3296.7,3295.6,3.03434874]
[1767710498496,3.82234747,3296.7,3295.6,3.03434874]
[1767710498703,0.789,3296.7,3295.6,6.09904104]
[1767710498888,0.0212711,3297.9,3295.6,6.09904104]
[1767710498889,1.45778806,3298.0,3295.9,0.16]
[1767710499110,1.45778806,3298.0,3296.0,0.83832723]
[1767710499398,1.45778806,3298.0,3296.1,0.03033888]
[1767710499595,4.48992875,3298.0,3296.2,0.772]
[1767710499794,4.48992875,3298.0,3296.3,0.772]
[1767710499795,1.49562272,3297.9,3296.3,0.772]
[1767710500202,1.51689382,3297.9,3296.3,0.772]
[1767710500393,6.85364916,3297.8,3296.3,0.772]
[1767710500594,1.51689382,3297.7,3295.6,9.10304638]
[1767710500995,0.789,3297.6,3295.7,0.80234256]
[1767710501195,0.789,3297.6,3295.8,1.29397378]
[1767710501400,0.789,3297.6,3295.9,0.03034072]
[1767710501624,1.45778806,3297.7,3295.9,0.03134072]
[1767710501805,1.45778806,3297.7,3295.9,0.001]
[1767710502010,1.51689382,3297.7,3295.9,0.001]
[1767710502211,1.51689382,3297.7,3296.0,0.772]
[1767710502436,6.06501698,3297.6,3296.1,3.03388853]
[1767710502606,1.49562272,3297.5,3296.1,3.03388853]
[1767710502797,1.47905916,3297.4,3295.9,3.83739559]
[1767710503001,1.6473121,3297.3,3295.9,0.001]
[1767710503205,6.06501698,3297.6,3296.0,6.06796092]
[1767710503406,8.31180504,3297.6,3296.1,0.03033888]
[1767710503629,1.47905916,3297.5,3296.1,0.03033888]
[1767710503923,1.47905916,3297.5,3295.9,0.001]
[1767710503924,0.0212711,3297.0,3295.9,0.001]
[1767710504102,0.82683466,3296.9,3295.9,0.001]
[1767710504302,1.47905916,3296.8,3295.9,0.001]
[1767710504502,3.0335204,3296.5,3295.9,0.001]
[1767710504730,6.0670408,3296.5,3295.9,0.001]
[1767710504897,3.0335204,3296.5,3295.9,0.001]
[1767710505299,1.47905916,3296.8,3295.9,0.001]
[1767710505600,1.45778806,3296.6,3295.9,0.001]
[1767710505929,1.45778806,3296.4,3295.2,3.03568846]
[1767710506305,1.45778806,3296.4,3295.2,0.001]
[1767710506506,1.45778806,3296.1,3295.2,0.001]
[1767710506703,1.45778806,3296.1,3295.2,0.03134717]
[1767710506897,1.45778806,3296.1,3295.2,0.001]
[1767710507098,3.03361612,3296.4,3295.2,0.001]
[1767710507294,6.06723224,3296.4,3295.2,0.001]
[1767710507517,1.45778806,3296.2,3295.2,0.001]
[1767710508621,6.06777706,3296.1,3295.2,0.001]
[1767710509202,3.03388853,3296.1,3295.2,0.001]
[1767710510114,1.45778806,3296.2,3295.2,0.001]
[1767710510314,0.789,3296.5,3295.2,0.001]
[1767710510518,0.32004383,3296.4,3295.2,0.001]
[1767710510694,6.06759298,3296.2,3295.2,0.001]
[1767710510913,1.47905916,3296.1,3295.2,0.001]
[1767710511531,1.45778806,3296.1,3295.2,0.001]
[1767710511930,1.45778806,3295.9,3293.7,0.16]
[1767710512105,0.0212711,3296.0,3294.2,3.03561894]
[1767710512106,1.45778806,3295.6,3294.2,3.03561894]
[1767710512307,1.45778806,3295.6,3294.4,3.03544829]
[1767710512707,1.45778806,3295.4,3294.4,3.03544829]
[1767710513435,1.45778806,3295.4,3294.3,0.30356189]
[1767710513732,1.45778806,3295.4,3294.6,0.001]
[1767710514314,1.47905916,3295.4,3293.5,0.772]
[1767710514511,6.0688818,3295.5,3293.6,3.03612497]
[1767710514512,1.45778806,3295.0,3293.6,3.03612497]
[1767710514813,3.82400718,3294.9,3293.7,0.03036099]
[1767710515030,6.07001436,3294.9,3293.2,0.0303656]
[1767710515228,0.789,3294.8,3293.2,0.772]
[1767710515934,0.789,3294.8,3293.3,0.03036467]
[1767710516245,0.789,3294.8,3293.2,0.772]
[1767710516825,3.03501018,3294.9,3293.4,6.07275156]
[1767710517022,6.07002036,3294.9,3293.5,0.03036283]
[1767710517225,6.07002036,3294.9,3293.4,6.10311531]
[1767710517226,7.6629482,3294.9,3293.4,6.10311531]
[1767710517424,7.6629482,3294.9,3293.5,0.61031153]
[1767710517620,4.62793802,3294.9,3293.5,0.61031153]
[1767710518423,3.03493397,3295.0,3293.6,0.03036191]
[1767710518633,6.06986794,3295.0,3293.6,0.03036191]
[1767710518839,3.03493397,3295.0,3293.7,6.07219842]
[1767710519022,3.03493397,3295.0,3293.8,0.61025603]
[1767710519222,6.06986794,3295.0,3293.8,0.61025603]
[1767710519694,6.06986794,3295.0,3293.7,3.03609921]
[1767710519953,1.59292784,3295.7,3293.7,6.07219842]
[1767710520248,9.12376517,3295.8,3293.7,6.07219842]
[1767710520249,1.59292784,3295.3,3293.7,6.07219842]
[1767710520446,0.0212711,3295.4,3293.8,0.60721984]
[1767710520447,1.59292784,3295.1,3293.8,0.60721984]
[1767710520814,6.06980272,3295.0,3293.8,0.60721984]
[1767710521018,6.10763738,3295.0,3293.4,0.773]
[1767710521249,6.10763738,3295.0,3293.2,3.03653105]
[1767710521419,6.10763738,3295.0,3293.8,3.03600424]
[1767710521619,6.06980272,3295.0,3293.8,3.03600424]
[1767710521823,7.66919769,3295.0,3293.5,3.03627919]
[1767710522033,0.03783466,3294.9,3293.6,0.30362792]
[1767710522435,0.03783466,3294.9,3293.4,0.773]
[1767710522639,3.03489902,3295.1,3293.8,6.07198051]
[1767710522960,1.56156031,3295.6,3294.0,9.1074681]
[1767710523146,1.56156031,3295.6,3294.1,0.8033573]
[1767710523147,4.5959219,3295.6,3294.1,0.8033573]
[1767710523346,1.56156031,3295.6,3294.1,0.8033573]
[1767710523525,4.59592056,3295.6,3294.1,0.8033573]
[1767710523859,6.0687205,3295.6,3294.2,0.99108254]
[1767710524060,6.0687205,3295.6,3294.3,0.03035546]
[1767710524859,6.0687205,3295.6,3294.2,0.99108254]
[1767710525061,6.06832938,3295.8,3294.3,3.0659017]
[1767710525258,6.06832938,3295.8,3294.4,0.70926151]
[1767710525755,6.06832938,3295.8,3294.4,0.73961605]
[1767710526162,6.06832938,3295.8,3294.4,1.48226151]
[1767710526367,4.64878277,3296.8,3294.5,1.85821652]
[1767710526542,1.61552224,3296.8,3294.7,1.69821652]
[1767710526744,0.05396193,3296.8,3294.7,1.71948762]
[1767710527063,0.05396193,3296.8,3295.2,1.85821652]
[1767710527285,0.05396193,3296.8,3295.3,3.87096188]
[1767710527585,3.03287637,3297.2,3295.3,3.87096188]
[1767710527891,0.0212711,3296.9,3295.3,1.39974536]
[1767710528182,0.0212711,3296.9,3295.1,6.84261852]
[1767710528481,0.03983466,3297.0,3295.1,6.84261852]
[1767710528653,0.0212711,3296.9,3295.1,6.06961852]
[1767710528850,0.0212711,3296.7,3294.8,0.03035085]
[1767710529050,0.0212711,3296.7,3294.6,0.33718326]
[1767710529051,0.0212711,3296.1,3294.6,0.33718326]
[1767710529378,0.0212711,3296.1,3294.4,0.001]
[1767710529379,0.79,3296.0,3294.7,3.0351401]
[1767710529552,0.79,3296.0,3294.4,0.774]
[1767710530083,6.06685676,3296.6,3294.8,6.07013772]
[1767710530283,1.58283141,3296.5,3294.9,0.03034993]
[1767710530489,1.58283141,3296.5,3295.0,0.61004876]
[1767710530656,1.56156031,3296.3,3295.0,0.61004876]
[1767710531007,3.03379649,3296.2,3295.0,4.41789417]
[1767710531682,6.06759298,3296.2,3295.0,0.61004876]
[1767710531850,0.03783466,3296.1,3295.1,0.773]
[1767710532054,1.62066607,3296.1,3295.1,0.773]
[1767710532687,1.62066607,3296.1,3294.4,0.001]
[1767710532893,1.56156031,3295.8,3294.4,0.001]
[1767710533065,4.59600121,3295.5,3294.4,0.001]
[1767710533269,1.56156031,3295.4,3294.4,0.001]
[1767710533471,0.05910576,3295.9,3294.4,0.001]
[1767710533783,6.06832938,3295.8,3294.4,0.001]
[1767710533977,0.0212711,3295.7,3294.4,0.001]
[1767710534177,0.0212711,3295.5,3294.4,0.001]
[1767710534390,0.0212711,3295.4,3294.4,0.001]
[1767710534691,0.05910576,3295.4,3294.4,0.001]
[1767710535204,3.0345882,3295.4,3294.4,0.001]
[1767710535517,0.28255797,3295.3,3294.4,0.001]
[1767710535723,0.0212711,3296.3,3294.5,0.773]
[1767710535724,3.03387379,3296.2,3294.5,0.773]
[1767710535881,0.28250339,3296.1,3294.6,0.03035269]
[1767710536081,0.28250339,3296.0,3294.6,0.03035269]
[1767710536279,2.35156031,3296.3,3294.6,0.03035269]
[1767710536506,0.28251373,3296.2,3294.6,0.03035269]
[1767710536682,0.28251373,3296.1,3294.7,0.773]
[1767710537003,4.63313649,3296.3,3294.4,0.001]
[1767710537004,1.58283141,3295.8,3294.4,0.001]
[1767710537207,6.06869764,3295.6,3294.4,0.001]
[1767710537421,0.0212711,3295.4,3294.4,0.001]
[1767710537608,0.28251373,3295.3,3294.4,0.001]
[1767710537815,0.28251373,3295.2,3294.4,0.001]
[1767710538133,0.28260769,3295.1,3294.4,0.001]
[1767710538307,6.06869764,3295.6,3294.4,0.001]
[1767710538541,0.30389479,3295.5,3294.4,0.001]
[1767710538830,1.58283141,3295.3,3294.4,0.001]
[1767710538993,1.844184,3295.2,3294.4,0.001]
[1767710539194,0.28262369,3295.1,3294.4,0.001]
[1767710539512,0.28262369,3295.0,3294.4,0.001]
[1767710539813,4.59633753,3295.2,3294.4,0.001]
[1767710539814,1.56156031,3295.1,3294.4,0.001]
[1767710539994,1.84419762,3295.0,3294.4,0.001]
[1767710540193,0.28263731,3294.9,3294.4,0.001]
[1767710540425,0.28263731,3294.8,3294.7,0.001]
[1767710540627,0.28263731,3294.8,3294.4,0.001]
[1767710540810,0.28263731,3294.7,3293.5,3.03621411]
[1767710541026,2.37283141,3295.1,3293.6,0.30362141]
[1767710541027,0.30394586,3294.6,3293.6,0.30362141]
[1767710541219,1.58283141,3294.9,3293.1,0.773]
[1767710541220,6.0709082,3294.4,3293.1,0.773]
[1767710541402,6.0709082,3294.4,3293.1,6.10364635]
[1767710541403,0.28267476,3294.3,3293.1,6.10364635]
[1767710541608,0.28267476,3294.2,3293.1,6.10364635]
[1767710541827,3.03508558,3294.8,3293.1,6.10364635]
[1767710542016,0.28267007,3294.7,3293.2,0.68766464]
[1767710542326,1.07267007,3294.6,3293.2,0.68766464]
[1767710542647,0.28267007,3294.5,3293.2,0.68766464]
[1767710542947,0.79,3294.6,3293.2,0.68766464]
[1767710542948,0.28267007,3294.4,3293.3,0.03036467]
[1767710543152,0.28267007,3294.3,3293.2,0.68766464]
[1767710543350,0.28267007,3294.2,3293.4,3.03637578]
[1767710543521,3.03539948,3294.5,3293.4,3.03637578]